[Event "DVM U14 2024"]
[Site "Heidelberg"]
[Date "2024.12.28"]
[Round "3"]
[White "Popitz, Paul"]
[Black "Splitt, Albert"]
[Result "0-1"]
[ECO "C50"]
[WhiteElo "1449"]
[BlackElo "1571"]
[Annotator "NA"]
[PlyCount "112"]
[EventDate "2024.12.23"]
[EventType "team-tourn"]
[EventRounds "7"]
[EventCountry "GER"]
[SourceTitle "playchess.com"]
[Source "ChessBase"]
[SourceQuality "1"]
[TimeControl "40/5400+30:1800+30"]

1. e4 {[%emt 0:00:04]} e5 {[%emt 0:00:08]} 2. Nf3 {[%emt 0:00:05]} Nc6 {[%emt 0:00:06]} 3. Bc4 {[%emt 0:00:06]} Bc5 {[%emt 0:00:39]} 4. O-O {[%emt 0:00:56]} d6 {[%emt 0:00:23]} 5. a4 {[%emt 0:00:39]} a6 {[%emt 0:00:35]} 6. c3 {[%emt 0:01:15]} Bg4 {[%emt 0:03:16]} 7. d4 {[%emt 0:04:09]} exd4 {[%emt 0:00:29]} 8. Bxf7+ {[%emt 0:00:24]} Kf8 {[%emt 0:01:25]} 9. Bg5 {[%emt 0:11:15]} Bxf3 {[%emt 0:01:15]} 10. Qc1 {[%emt 0:09:28]} Qd7 {[%emt 0:00:58]} 11. Qf4 {[%emt 0:04:38]} Qxf7 {[%emt 0:02:07]} 12. Qxf3 {[%emt 0:02:18]} Qxf3 {[%emt 0:01:02]} 13. gxf3 {[%emt 0:00:08]} Ne5 {[%emt 0:00:19]} 14. Kg2 {[%emt 0:00:40]} h6 {[%emt 0:00:43]} 15. Bf4 {[%emt 0:00:34]} Nd3 {[%emt 0:00:28]} 16. Bc1 {[%emt 0:00:14]} Nf6 {[%emt 0:00:56]} 17. Rd1 {[%emt 0:00:26]} Nxc1 {[%emt 0:00:10]} 18. Rxc1 {[%emt 0:00:13]} Nh5 {[%emt 0:00:11]} 19. cxd4 {[%emt 0:00:28]} Nf4+ {[%emt 0:00:29]} 20. Kf1 {[%emt 0:00:51]} Bxd4 {[%emt 0:00:43]} 21. Rxc7 {[%emt 0:00:20]} Rb8 {[%emt 0:00:15]} 22. Ra2 {[%emt 0:01:54]} Ne6 {[%emt 0:00:14]} 23. Rc4 {[%emt 0:01:41]} Ke7 {[%emt 0:00:26]} 24. b4 {[%emt 0:01:40]} Rhc8 {[%emt 0:00:12]} 25. Rac2 {[%emt 0:00:15]} Kd7 {[%emt 0:00:43]} 26. b5 {[%emt 0:02:52]} Rxc4 {[%emt 0:01:17]} 27. Rxc4 {[%emt 0:00:17]} Rc8 {[%emt 0:00:27]} 28. Rb4 {[%emt 0:01:39]} a5 {[%emt 0:01:35]} 29. Rb3 {[%emt 0:00:08]} b6 {[%emt 0:00:15]} 30. Ke2 {[%emt 0:02:08]} Nf4+ {[%emt 0:00:15]} 31. Kd2 {[%emt 0:00:26]} Bxf2 {[%emt 0:00:26]} 32. Nc3 {[%emt 0:00:17]} Rc4 {[%emt 0:01:27]} 33. Ra3 {[%emt 0:01:10]} Bc5 {[%emt 0:00:40]} 34. Ra2 {[%emt 0:00:19]} Bb4 {[%emt 0:00:08]} 35. Ke3 {[%emt 0:01:01]} Bxc3 {[%emt 0:02:33]} 36. Kxf4 {[%emt 0:00:31]} Bf6 {[%emt 0:00:30]} 37. Kf5 {[%emt 0:01:09]} Rc3 {[%emt 0:00:17]} 38. f4 {[%emt 0:00:17]} Rc5+ {[%emt 0:00:59]} 39. Kg4 {[%emt 0:00:49]} Ke6 {[%emt 0:00:17]} 40. Kf3 {[%emt 0:01:44]} h5 {[%emt 0:00:49]} 41. Kg2 {[%emt 0:31:18]} Rc3 {[%emt 0:30:16]} 42. Kf2 {[%emt 0:00:36]} Bd4+ {[%emt 0:00:14]} 43. Kg2 {[%emt 0:00:42]} Re3 {[%emt 0:00:09]} 44. e5 {[%emt 0:00:11]} dxe5 {[%emt 0:00:19]} 45. fxe5 {[%emt 0:00:07]} Kxe5 {[%emt 0:00:05]} 46. Kf1 {[%emt 0:01:19]} Rf3+ {[%emt 0:00:41]} 47. Kg2 {[%emt 0:00:08]} Kf4 {[%emt 0:00:18]} 48. Rd2 {[%emt 0:00:31]} Ke4 {[%emt 0:00:23]} 49. Rxd4+ {[%emt 0:00:13]} Kxd4 {[%emt 0:00:10]} 50. Kxf3 {[%emt 0:00:05]} g5 {[%emt 0:00:08]} 51. h3 {[%emt 0:00:12]} g4+ {[%emt 0:00:15]} 52. hxg4 {[%emt 0:00:07]} hxg4+ {[%emt 0:00:04]} 53. Kxg4 {[%emt 0:00:10]} Kc4 {[%emt 0:00:04]} 54. Kf4 {[%emt 0:00:05]} Kb4 {[%emt 0:00:06]} 55. Ke4 {[%emt 0:00:10]} Kxa4 {[%emt 0:00:08]} 56. Kd5 {[%emt 0:00:12]} Kxb5 {[%emt 0:00:09]} 0-1

[Event "DVM U14 2024"]
[Site "Heidelberg"]
[Date "2024.12.28"]
[Round "3"]
[White "Petzold, Gustav"]
[Black "Kovalenko, Andrii"]
[Result "0-1"]
[ECO "C47"]
[WhiteElo "935"]
[BlackElo "1211"]
[Annotator "NA"]
[PlyCount "86"]
[EventDate "2024.12.23"]
[EventType "team-tourn"]
[EventRounds "7"]
[EventCountry "GER"]
[SourceTitle "playchess.com"]
[Source "ChessBase"]
[SourceQuality "1"]
[TimeControl "40/5400+30:1800+30"]

1. e4 {[%emt 0:00:01]} e5 {[%emt 0:00:04]} 2. Nf3 {[%emt 0:00:04]} Nc6 {[%emt 0:00:00]} 3. d4 {[%emt 0:00:09]} exd4 {[%emt 0:00:05]} 4. Nxd4 {[%emt 0:00:06]} Nf6 {[%emt 0:00:06]} 5. Nc3 {[%emt 0:00:18]} Bb4 {[%emt 0:00:35]} 6. Bg5 {[%emt 0:00:30]} h6 {[%emt 0:00:58]} 7. Nxc6 {[%emt 0:01:38]} bxc6 {[%emt 0:00:26]} 8. Bxf6 {[%emt 0:00:34]} Qxf6 {[%emt 0:00:10]} 9. Qd2 {[%emt 0:01:03]} Bxc3 {[%emt 0:00:15]} 10. Qxc3 {[%emt 0:00:46]} Qxc3+ {[%emt 0:00:06]} 11. bxc3 {[%emt 0:00:07]} O-O {[%emt 0:00:11]} 12. Bc4 {[%emt 0:00:07]} Re8 {[%emt 0:00:28]} 13. f3 {[%emt 0:01:02]} d5 {[%emt 0:00:24]} 14. Bd3 {[%emt 0:00:07]} dxe4 {[%emt 0:00:15]} 15. fxe4 {[%emt 0:00:49]} Bf5 {[%emt 0:00:21]} 16. O-O {[%emt 0:01:09]} Bxe4 {[%emt 0:00:05]} 17. Rfe1 {[%emt 0:00:31]} Bd5 {[%emt 0:00:20]} 18. c4 {[%emt 0:00:44]} Rxe1+ {[%emt 0:00:38]} 19. Rxe1 {[%emt 0:00:10]} Be6 {[%emt 0:00:03]} 20. Rb1 {[%emt 0:00:34]} Bc8 {[%emt 0:03:54]} 21. Re1 {[%emt 0:00:08]} Ba6 {[%emt 0:00:46]} 22. c5 {[%emt 0:02:53]} Bxd3 {[%emt 0:00:19]} 23. cxd3 {[%emt 0:00:32]} Kf8 {[%emt 0:00:09]} 24. Kf2 {[%emt 0:00:08]} Rd8 {[%emt 0:00:11]} 25. Rd1 {[%emt 0:00:54]} Rd5 {[%emt 0:00:12]} 26. d4 {[%emt 0:00:57]} Ke7 {[%emt 0:00:32]} 27. Ke3 {[%emt 0:00:30]} Rh5 {[%emt 0:01:09]} 28. h3 {[%emt 0:01:00]} Rg5 {[%emt 0:00:07]} 29. Re1 {[%emt 0:00:50]} Ke6 {[%emt 0:01:31]} 30. h4 {[%emt 0:04:52]} Rg6 {[%emt 0:01:51]} 31. Kf3+ {[%emt 0:01:51]} Kd5 {[%emt 0:02:00]} 32. Re7 {[%emt 0:00:53]} Rf6+ {[%emt 0:00:06]} 33. Kg3 {[%emt 0:00:14]} Kxd4 {[%emt 0:00:23]} 34. Rxc7 {[%emt 0:00:17]} Kxc5 {[%emt 0:00:05]} 35. Rxa7 {[%emt 0:00:08]} Kb6 {[%emt 0:00:33]} 36. Ra4 {[%emt 0:00:18]} c5 {[%emt 0:00:26]} 37. Rc4 {[%emt 0:01:14]} Kb5 {[%emt 0:00:15]} 38. Rc2 {[%emt 0:00:10]} c4 {[%emt 0:00:26]} 39. a3 {[%emt 0:00:34]} Ra6 {[%emt 0:00:19]} 40. Rc3 {[%emt 0:06:17]} Kc5 {[%emt 0:00:15]} 41. Kf4 {[%emt 0:31:09]} Kd4 {[%emt 0:30:09]} 42. Rh3 {[%emt 0:01:57]} c3 {[%emt 0:00:10]} 43. Rh1 {[%emt 0:00:31]} c2 {[%emt 0:00:20]} 0-1

[Event "DVM U14 2024"]
[Site "Heidelberg"]
[Date "2024.12.28"]
[Round "4"]
[White "Mohylnyi, Stepan"]
[Black "Aweh, Mads"]
[Result "1/2-1/2"]
[ECO "B33"]
[WhiteElo "2180"]
[BlackElo "1663"]
[Annotator "RC"]
[PlyCount "79"]
[EventDate "2024.12.23"]
[EventType "team-tourn"]
[EventRounds "7"]
[EventCountry "GER"]
[SourceTitle "playchess.com"]
[Source "ChessBase"]
[SourceQuality "1"]
[TimeControl "40/5400+30:1800+30"]

1. e4 {[%emt 0:00:02]} c5 {[%emt 0:00:15]} 2. Nf3 {[%emt 0:00:04]} Nc6 {[%emt 0:00:04]} 3. d4 {[%emt 0:00:05]} cxd4 {[%emt 0:00:08]} 4. Nxd4 {[%emt 0:00:02]} Nf6 {[%emt 0:00:10]} 5. Nc3 {[%emt 0:00:05]} e5 {[%emt 0:00:04]} 6. Ndb5 {[%emt 0:00:03]} d6 {[%emt 0:00:10]} 7. Nd5 {[%emt 0:00:03]} Nxd5 {[%emt 0:00:07]} 8. exd5 {[%emt 0:00:02]} Ne7 {[%emt 0:00:08]} 9. c4 {[%emt 0:00:03]} Ng6 {[%emt 0:00:07]} 10. c5 {[%emt 0:00:04]} a6 {[%emt 0:00:04]} 11. Nxd6+ {[%emt 0:00:06]} Bxd6 {[%emt 0:00:10]} 12. cxd6 {[%emt 0:00:02]} Qxd6 {[%emt 0:00:10]} 13. Be3 {[%emt 0:01:45]} Bf5 {[%emt 0:02:18]} 14. Rc1 {[%emt 0:03:30]} Qb4+ {[%emt 0:04:12]} 15. Qd2 {[%emt 0:06:36]} Qxd2+ {[%emt 0:00:10]} 16. Bxd2 {[%emt 0:00:41]} Kd7 {[%emt 0:00:30]} 17. Bc4 {[%emt 0:01:45]} Rhc8 {[%emt 0:02:01]} 18. O-O {[%emt 0:06:24]} Rxc4 {[%emt 0:02:17]} 19. Rxc4 {[%emt 0:00:06]} Bd3 {[%emt 0:00:03]} 20. Rb4 {[%emt 0:10:34]} Bxf1 {[%emt 0:00:43]} 21. Rxb7+ {[%emt 0:02:20]} Kc8 {[%emt 0:01:08]} 22. Rxf7 {[%emt 0:00:05]} Bc4 {[%emt 0:00:07]} 23. Rxg7 {[%emt 0:00:10]} Bxd5 {[%emt 0:00:03]} 24. Ba5 {[%emt 0:00:06]} Kb8 {[%emt 0:01:44]} 25. Bc7+ {[%emt 0:07:08]} Kb7 {[%emt 0:00:48]} 26. Bxe5+ {[%emt 0:00:16]} Kc6 {[%emt 0:00:59]} 27. Bg3 {[%emt 0:05:35]} Re8 {[%emt 0:03:02]} 28. f3 {[%emt 0:02:47]} Re7 {[%emt 0:00:52]} 29. Rxe7 {[%emt 0:00:07]} Nxe7 {[%emt 0:00:48]} 30. a3 {[%emt 0:00:07]} Nf5 {[%emt 0:00:30]} 31. Be5 {[%emt 0:01:52]} a5 {[%emt 0:00:35]} 32. Kf2 {[%emt 0:00:25]} a4 {[%emt 0:00:44]} 33. Bf6 {[%emt 0:00:43]} Kd7 {[%emt 0:00:56]} 34. g4 {[%emt 0:01:57]} Ke6 {[%emt 0:00:24]} 35. Bc3 {[%emt 0:00:22]} Nd6 {[%emt 0:01:30]} 36. Ke3 {[%emt 0:00:29]} Bb3 {[%emt 0:04:55]} 37. f4 {[%emt 0:02:02]} Bd1 {[%emt 0:01:03]} 38. h3 {[%emt 0:01:08]} h5 {[%emt 0:00:58]} 39. f5+ {[%emt 0:00:00]} Nxf5+ {[%emt 0:00:24]} 40. gxf5+ {[%emt 0:00:00]} 1/2-1/2

[Event "DVM U14 2024"]
[Site "Heidelberg"]
[Date "2024.12.28"]
[Round "4"]
[White "Schwitkowski, Luka"]
[Black "Marcziter, Alex"]
[Result "0-1"]
[ECO "E71"]
[WhiteElo "2070"]
[BlackElo "2017"]
[Annotator "NA RC"]
[PlyCount "64"]
[EventDate "2024.12.23"]
[EventType "team-tourn"]
[EventRounds "7"]
[EventCountry "GER"]
[SourceTitle "playchess.com"]
[Source "ChessBase"]
[SourceQuality "1"]
[TimeControl "40/5400+30:1800+30"]

1. d4 {[%emt 0:00:04]} Nf6 {[%emt 0:00:18]} 2. c4 {[%emt 0:00:06]} g6 {[%emt 0:00:42]} 3. Nc3 {[%emt 0:00:21]} Bg7 {[%emt 0:00:39]} 4. e4 {[%emt 0:00:05]} d6 {[%emt 0:00:36]} 5. h3 {[%emt 0:00:11]} O-O {[%emt 0:01:13]} 6. Be3 {[%emt 0:00:06]} e5 {[%emt 0:01:24]} 7. d5 {[%emt 0:00:17]} a5 {[%emt 0:04:25]} 8. Qd2 {[%emt 0:01:24]} Na6 {[%emt 0:01:19]} 9. g4 {[%emt 0:00:06]} Nc5 {[%emt 0:01:08]} 10. f3 {[%emt 0:00:06]} Nfd7 $16 {[%emt 0:10:49]} (10... c6 $1 $11) 11. h4 {[%emt 0:32:33]} f5 {[%emt 0:10:15]} 12. exf5 {[%emt 0:03:50]} gxf5 {[%emt 0:00:29]} 13. gxf5 {[%emt 0:03:03]} Nb6 {[%emt 0:03:27]} 14. Bd3 {[%emt 0:28:09]} Bxf5 {[%emt 0:07:24]} 15. Ne4 {[%emt 0:01:30]} Bxe4 {[%emt 0:06:03]} 16. fxe4 {[%emt 0:00:14]} a4 {[%emt 0:00:54]} 17. O-O-O {[%emt 0:01:01]} Kh8 {[%emt 0:04:20]} 18. Ne2 {[%emt 0:02:05]} Rf3 {[%emt 0:01:42]} 19. h5 {[%emt 0:14:33]} Nxd3+ {[%emt 0:01:47]} 20. Qxd3 {[%emt 0:00:09]} Bh6 {[%emt 0:02:52]} 21. Bxh6 {[%emt 0:01:02]} Rxd3 {[%emt 0:00:05]} 22. Rxd3 {[%emt 0:00:08]} Qf6 {[%emt 0:00:20]} 23. Bd2 {[%emt 0:00:52]} Nxc4 {[%emt 0:00:41]} 24. Ng3 {[%emt 0:01:48]} Nxd2 {[%emt 0:00:54]} 25. Kxd2 {[%emt 0:00:14]} Qg5+ {[%emt 0:02:02]} 26. Kc3 {[%emt 0:01:11]} Ra5 {[%emt 0:07:42]} 27. Rf1 {[%emt 0:01:14]} Rc5+ {[%emt 0:02:01]} 28. Kb4 {[%emt 0:00:06]} Rc2 {[%emt 0:08:09]} 29. Ka3 {[%emt 0:07:48]} Rg2 {[%emt 0:02:17]} 30. h6 {[%emt 0:00:33]} Qxh6 {[%emt 0:06:05]} 31. Nf5 {[%emt 0:00:24]} Qh2 {[%emt 0:00:50]} 32. Rff3 {[%emt 0:00:45]} Rxb2 {[%emt 0:00:23]} 0-1

[Event "DVM U14 2024"]
[Site "Heidelberg"]
[Date "2024.12.28"]
[Round "4"]
[White "Mandalka, Justus"]
[Black "Rodriguez Klasen, Ennio"]
[Result "1/2-1/2"]
[ECO "B32"]
[WhiteElo "2059"]
[BlackElo "1870"]
[Annotator "NA RC"]
[PlyCount "61"]
[EventDate "2024.12.23"]
[EventType "team-tourn"]
[EventRounds "7"]
[EventCountry "GER"]
[SourceTitle "playchess.com"]
[Source "ChessBase"]
[SourceQuality "1"]
[TimeControl "40/5400+30:1800+30"]

1. e4 {[%emt 0:00:03]} c5 {[%emt 0:00:09]} 2. Nf3 {[%emt 0:00:04]} Nc6 {[%emt 0:00:03]} 3. d4 {[%emt 0:00:06]} cxd4 {[%emt 0:00:03]} 4. Nxd4 {[%emt 0:00:05]} e5 {[%emt 0:00:03]} 5. Nb5 {[%emt 0:00:09]} d6 {[%emt 0:00:09]} 6. N1c3 {[%emt 0:00:24]} a6 {[%emt 0:00:11]} 7. Na3 {[%emt 0:00:05]} Be7 {[%emt 0:00:13]} 8. Be3 {[%emt 0:05:01]} b5 {[%emt 0:04:30]} 9. Nd5 {[%emt 0:01:02]} Rb8 {[%emt 0:00:22]} 10. c4 {[%emt 0:05:19]} b4 {[%emt 0:03:02]} 11. Nc2 {[%emt 0:00:42]} Nf6 $14 {[%emt 0:00:52]} 12. Nxf6+ {[%emt 0:00:37]} Bxf6 {[%emt 0:00:20]} 13. c5 {[%emt 0:03:12]} dxc5 {[%emt 0:22:43]} 14. Qxd8+ {[%emt 0:00:51]} Bxd8 {[%emt 0:01:44]} 15. Bxc5 {[%emt 0:00:07]} Be7 {[%emt 0:03:03]} 16. Bxe7 {[%emt 0:00:21]} Kxe7 {[%emt 0:00:50]} 17. Bc4 {[%emt 0:02:02]} Rd8 {[%emt 0:14:58]} 18. Bd5 {[%emt 0:02:15]} Na5 {[%emt 0:01:58]} 19. O-O-O {[%emt 0:06:45]} Be6 {[%emt 0:09:43]} 20. b3 {[%emt 0:04:15]} Rb5 {[%emt 0:04:38]} 21. Ne3 {[%emt 0:04:50]} Nc6 {[%emt 0:03:22]} 22. Bxc6 {[%emt 0:00:39]} Rc5+ {[%emt 0:00:09]} 23. Kb2 {[%emt 0:00:05]} Rxd1 {[%emt 0:01:51]} 24. Rxd1 {[%emt 0:00:10]} Rxc6 {[%emt 0:00:06]} 25. Rc1 {[%emt 0:09:44]} Rxc1 {[%emt 0:06:34]} 26. Kxc1 {[%emt 0:00:06]} Kd6 {[%emt 0:01:46]} 27. Kc2 {[%emt 0:04:36]} Kc5 {[%emt 0:04:25]} 28. Kd3 {[%emt 0:00:52]} h5 {[%emt 0:01:47]} 29. h4 {[%emt 0:00:37]} g6 {[%emt 0:02:06]} 30. g3 {[%emt 0:00:21]} f5 {[%emt 0:05:27]} 31. f3 {[%emt 0:07:22]} 1/2-1/2

[Event "DVM U14 2024"]
[Site "Heidelberg"]
[Date "2024.12.28"]
[Round "4"]
[White "Li, Yunqi"]
[Black "Klein, Levent"]
[Result "1-0"]
[ECO "D15"]
[WhiteElo "1990"]
[BlackElo "1985"]
[Annotator "RC"]
[PlyCount "81"]
[EventDate "2024.12.23"]
[EventType "team-tourn"]
[EventRounds "7"]
[EventCountry "GER"]
[SourceTitle "playchess.com"]
[Source "ChessBase"]
[SourceQuality "1"]
[TimeControl "40/5400+30:1800+30"]

1. d4 {[%emt 0:00:10]} d5 {[%emt 0:00:05]} 2. c4 {[%emt 0:00:11]} c6 {[%emt 0:00:02]} 3. Nc3 {[%emt 0:00:36]} Nf6 {[%emt 0:00:03]} 4. Nf3 {[%emt 0:00:07]} Bf5 {[%emt 0:00:07]} 5. cxd5 {[%emt 0:00:16]} Nxd5 {[%emt 0:11:24]} 6. Qb3 {[%emt 0:05:56]} Qb6 {[%emt 0:02:58]} 7. Qxb6 {[%emt 0:00:25]} Nxb6 {[%emt 0:03:46]} 8. e3 {[%emt 0:08:18]} e6 {[%emt 0:00:24]} 9. Be2 {[%emt 0:00:27]} Be7 {[%emt 0:00:27]} 10. O-O {[%emt 0:06:17]} O-O {[%emt 0:00:25]} 11. h3 {[%emt 0:05:00]} h6 {[%emt 0:01:29]} 12. Ne5 {[%emt 0:11:07]} Rd8 {[%emt 0:03:21]} 13. b3 {[%emt 0:03:51]} N8d7 {[%emt 0:00:17]} 14. Nc4 {[%emt 0:02:17]} Nd5 {[%emt 0:02:54]} 15. Bb2 {[%emt 0:06:55]} Nxc3 {[%emt 0:00:11]} 16. Bxc3 {[%emt 0:00:06]} Nf6 {[%emt 0:02:07]} 17. Bb2 {[%emt 0:14:15]} Rac8 {[%emt 0:01:31]} 18. Rac1 {[%emt 0:06:14]} Rc7 {[%emt 0:05:18]} 19. Ba3 {[%emt 0:05:18]} Bxa3 {[%emt 0:01:37]} 20. Nxa3 {[%emt 0:00:12]} Re7 {[%emt 0:05:36]} 21. Nc4 {[%emt 0:02:56]} Ne4 {[%emt 0:02:54]} 22. Bf3 {[%emt 0:02:30]} Ng5 {[%emt 0:06:40]} 23. Be2 {[%emt 0:00:41]} Ne4 {[%emt 0:00:08]} 24. b4 {[%emt 0:01:37]} Nd6 {[%emt 0:04:48]} 25. Nxd6 {[%emt 0:00:43]} Rxd6 {[%emt 0:00:06]} 26. Bf3 {[%emt 0:03:20]} Bd3 {[%emt 0:01:04]} 27. Rfd1 {[%emt 0:01:00]} Bb5 {[%emt 0:00:36]} 28. Rc5 {[%emt 0:02:05]} Rd8 {[%emt 0:06:24]} 29. Ra1 {[%emt 0:02:21]} b6 {[%emt 0:17:33]} 30. Rc3 {[%emt 0:01:05]} Ba4 {[%emt 0:00:12]} 31. Rac1 {[%emt 0:01:23]} Rc7 {[%emt 0:00:55]} 32. Be2 {[%emt 0:00:32]} Rdc8 {[%emt 0:01:09]} 33. Ba6 {[%emt 0:00:09]} Rd8 {[%emt 0:13:36]} 34. b5 {[%emt 0:02:16]} Rdd7 {[%emt 0:03:26]} 35. Rc4 {[%emt 0:00:47]} c5 {[%emt 0:03:26]} 36. Rxa4 {[%emt 0:00:14]} cxd4 {[%emt 0:00:11]} 37. Rxc7 {[%emt 0:00:31]} Rxc7 {[%emt 0:00:07]} 38. Rxd4 {[%emt 0:00:15]} Rc1+ {[%emt 0:00:08]} 39. Kh2 {[%emt 0:00:13]} Rc2 {[%emt 0:00:03]} 40. Kg3 {[%emt 0:00:17]} Kf8 {[%emt 0:00:45]} 41. Rd7 {[%emt 0:30:11]} 1-0

[Event "DVM U14 2024"]
[Site "Heidelberg"]
[Date "2024.12.28"]
[Round "4"]
[White "Retzlaff, Nick"]
[Black "Arne, Jonas"]
[Result "1/2-1/2"]
[ECO "B28"]
[WhiteElo "1979"]
[BlackElo "1823"]
[Annotator "RC"]
[PlyCount "100"]
[EventDate "2024.12.23"]
[EventType "team-tourn"]
[EventRounds "7"]
[EventCountry "GER"]
[SourceTitle "playchess.com"]
[Source "ChessBase"]
[SourceQuality "1"]
[TimeControl "40/5400+30:1800+30"]

1. e4 {[%emt 0:00:21]} c5 {[%emt 0:00:08]} 2. Nf3 {[%emt 0:00:02]} a6 {[%emt 0:00:06]} 3. d4 {[%emt 0:00:09]} cxd4 {[%emt 0:01:34]} 4. Nxd4 {[%emt 0:00:37]} Nf6 {[%emt 0:00:06]} 5. Nc3 {[%emt 0:00:08]} e5 {[%emt 0:00:07]} 6. Nb3 {[%emt 0:08:58]} Bb4 {[%emt 0:00:14]} 7. Bd2 {[%emt 0:09:11]} d6 {[%emt 0:05:27]} 8. Bd3 {[%emt 0:00:54]} O-O {[%emt 0:00:20]} 9. O-O {[%emt 0:02:27]} Bxc3 {[%emt 0:00:58]} 10. Bxc3 {[%emt 0:00:33]} Nbd7 {[%emt 0:00:12]} 11. f4 {[%emt 0:06:14]} b6 {[%emt 0:05:24]} 12. Qe2 {[%emt 0:10:06]} Bb7 {[%emt 0:03:35]} 13. Rad1 {[%emt 0:03:14]} Qe7 {[%emt 0:03:06]} 14. a3 {[%emt 0:04:36]} Rfe8 {[%emt 0:07:47]} 15. Rde1 {[%emt 0:06:22]} Nf8 {[%emt 0:14:30]} 16. Qe3 {[%emt 0:07:06]} Qc7 {[%emt 0:08:42]} 17. Qg3 {[%emt 0:03:35]} Nh5 {[%emt 0:04:30]} 18. Qg4 {[%emt 0:00:54]} Nf6 {[%emt 0:00:51]} 19. Qg3 {[%emt 0:00:05]} Ng6 {[%emt 0:06:15]} 20. fxe5 {[%emt 0:03:59]} dxe5 {[%emt 0:00:57]} 21. h4 {[%emt 0:05:49]} Qc6 {[%emt 0:10:16]} 22. Rf5 {[%emt 0:03:08]} Bc8 {[%emt 0:03:54]} 23. Rf3 {[%emt 0:02:42]} Nh5 {[%emt 0:08:04]} 24. Qf2 {[%emt 0:03:42]} Nhf4 {[%emt 0:02:24]} 25. Nd2 {[%emt 0:05:02]} b5 {[%emt 0:04:53]} 26. Rg3 {[%emt 0:04:46]} Qf6 {[%emt 0:03:38]} 27. Nf3 {[%emt 0:02:50]} h6 {[%emt 0:02:51]} 28. Nxe5 {[%emt 0:04:24]} Nxe5 {[%emt 0:01:21]} 29. Bxe5 {[%emt 0:00:17]} Qxe5 {[%emt 0:00:45]} 30. Rf1 {[%emt 0:00:27]} Bb7 {[%emt 0:01:50]} 31. Qxf4 {[%emt 0:00:20]} Qxf4 {[%emt 0:00:09]} 32. Rxf4 {[%emt 0:00:07]} Re5 {[%emt 0:00:42]} 33. Rgf3 {[%emt 0:00:41]} f6 {[%emt 0:00:21]} 34. Kf2 {[%emt 0:01:39]} Rae8 {[%emt 0:00:07]} 35. Ke3 {[%emt 0:00:51]} Kf7 {[%emt 0:00:42]} 36. g4 {[%emt 0:01:09]} Kg6 {[%emt 0:01:02]} 37. Rf5 {[%emt 0:00:51]} Bc8 {[%emt 0:00:40]} 38. Rxe5 {[%emt 0:00:28]} Rxe5 {[%emt 0:00:01]} 39. Kf4 {[%emt 0:00:37]} h5 {[%emt 0:00:53]} 40. gxh5+ {[%emt 0:00:31]} Kxh5 {[%emt 0:00:33]} 41. Rg3 {[%emt 0:03:31]} Re7 {[%emt 0:01:50]} 42. Be2+ {[%emt 0:13:16]} Kxh4 {[%emt 0:01:26]} 43. Rg6 {[%emt 0:00:38]} Bd7 {[%emt 0:06:03]} 44. c3 {[%emt 0:01:03]} Bc8 {[%emt 0:00:35]} 45. Bf3 {[%emt 0:02:12]} Bd7 {[%emt 0:01:04]} 46. Be2 {[%emt 0:05:39]} Bc8 {[%emt 0:00:44]} 47. Bf3 {[%emt 0:01:45]} Bd7 {[%emt 0:01:05]} 48. Bg4 {[%emt 0:04:53]} Bxg4 {[%emt 0:00:55]} 49. Rxg4+ {[%emt 0:00:01]} Kh5 {[%emt 0:00:15]} 50. Rg2 {[%emt 0:00:32]} Kh6 {[%emt 0:00:48]} 1/2-1/2

[Event "DVM U14 2024"]
[Site "Heidelberg"]
[Date "2024.12.28"]
[Round "4"]
[White "Hempel, Lorenz"]
[Black "Ensslen, Jakob"]
[Result "1-0"]
[ECO "B76"]
[WhiteElo "1960"]
[BlackElo "1714"]
[Annotator "NA RC"]
[PlyCount "65"]
[EventDate "2024.12.23"]
[EventType "team-tourn"]
[EventRounds "7"]
[EventCountry "GER"]
[SourceTitle "playchess.com"]
[Source "ChessBase"]
[SourceQuality "1"]
[TimeControl "40/5400+30:1800+30"]

1. e4 {[%emt 0:00:01]} c5 {[%emt 0:00:06]} 2. Nf3 {[%emt 0:00:05]} d6 {[%emt 0:00:03]} 3. d4 {[%emt 0:00:05]} cxd4 {[%emt 0:00:01]} 4. Nxd4 {[%emt 0:00:07]} Nf6 {[%emt 0:00:05]} 5. Nc3 {[%emt 0:00:08]} g6 {[%emt 0:00:04]} 6. f3 {[%emt 0:00:23]} Bg7 {[%emt 0:00:21]} 7. Be3 {[%emt 0:00:06]} O-O {[%emt 0:00:12]} 8. Qd2 {[%emt 0:00:09]} Nc6 {[%emt 0:00:07]} 9. g4 {[%emt 0:00:06]} Be6 {[%emt 0:00:09]} 10. O-O-O {[%emt 0:00:14]} Qa5 {[%emt 0:05:31]} 11. a3 {[%emt 0:06:24]} Nxd4 {[%emt 0:02:47]} 12. Bxd4 {[%emt 0:00:06]} a6 {[%emt 0:09:22]} 13. Kb1 {[%emt 0:01:44]} (13. h4 $14) 13... b5 {[%emt 0:02:37]} 14. Nd5 {[%emt 0:01:25]} Qd8 $16 {[%emt 0:07:29]} 15. h4 {[%emt 0:04:35]} Rb8 {[%emt 0:13:24]} 16. h5 {[%emt 0:03:40]} Bxd5 {[%emt 0:03:24]} 17. exd5 {[%emt 0:00:29]} a5 {[%emt 0:07:09]} 18. Qh2 {[%emt 0:15:00]} h6 {[%emt 0:20:01]} 19. f4 {[%emt 0:17:53]} Nxg4 {[%emt 0:06:47]} 20. Qg3 {[%emt 0:04:43]} f5 {[%emt 0:01:51]} 21. Bxg7 {[%emt 0:01:17]} Kxg7 {[%emt 0:00:09]} 22. Be2 {[%emt 0:01:44]} Qd7 {[%emt 0:01:50]} 23. Rh4 {[%emt 0:02:30]} g5 {[%emt 0:03:06]} 24. fxg5 {[%emt 0:04:28]} hxg5 {[%emt 0:00:37]} 25. h6+ {[%emt 0:04:30]} Kg6 {[%emt 0:00:58]} 26. Bxg4 {[%emt 0:02:23]} fxg4 {[%emt 0:02:30]} 27. Rxg4 {[%emt 0:00:09]} Qf5 {[%emt 0:01:52]} 28. Rg1 {[%emt 0:01:24]} Kf7 {[%emt 0:04:32]} 29. Rxg5 {[%emt 0:01:01]} Qf6 {[%emt 0:00:52]} 30. h7 {[%emt 0:05:04]} Rh8 {[%emt 0:01:24]} 31. Rg8 {[%emt 0:01:29]} Re8 {[%emt 0:02:52]} 32. Rxh8 {[%emt 0:01:03]} Qxh8 {[%emt 0:00:52]} 33. Qg6+ {[%emt 0:00:08]} 1-0

[Event "DVM U14 2024"]
[Site "Heidelberg"]
[Date "2024.12.28"]
[Round "4"]
[White "Steinbrenner, Peter"]
[Black "Retzlaff, Kian"]
[Result "1-0"]
[ECO "D00"]
[WhiteElo "1946"]
[BlackElo "1826"]
[Annotator "NA RC"]
[PlyCount "43"]
[EventDate "2024.12.23"]
[EventType "team-tourn"]
[EventRounds "7"]
[EventCountry "GER"]
[SourceTitle "playchess.com"]
[Source "ChessBase"]
[SourceQuality "1"]
[TimeControl "40/5400+30:1800+30"]

1. d4 {[%emt 0:00:11]} Nf6 {[%emt 0:00:07]} 2. Nc3 {[%emt 0:00:09]} d5 {[%emt 0:00:12]} 3. Bf4 {[%emt 0:00:13]} g6 {[%emt 0:00:27]} 4. h4 {[%emt 0:00:18]} Bg7 {[%emt 0:03:14]} 5. e3 {[%emt 0:00:39]} h5 {[%emt 0:04:43]} 6. Bd3 {[%emt 0:00:31]} O-O {[%emt 0:03:20]} 7. Nf3 {[%emt 0:00:37]} Bg4 {[%emt 0:10:03]} 8. Qd2 {[%emt 0:04:03]} Bxf3 {[%emt 0:01:13]} 9. gxf3 $11 {[%emt 0:00:08]} Re8 {[%emt 0:03:19]} 10. Rg1 {[%emt 0:10:20]} Kh7 {[%emt 0:07:23]} 11. Bg5 {[%emt 0:05:02]} e6 {[%emt 0:16:56]} 12. Ne2 {[%emt 0:02:40]} c5 {[%emt 0:04:00]} 13. c3 {[%emt 0:03:38]} Nbd7 {[%emt 0:01:36]} 14. Nf4 {[%emt 0:04:24]} Kh8 {[%emt 0:13:21]} 15. Bxg6 {[%emt 0:14:18]} fxg6 {[%emt 0:00:18]} 16. Nxg6+ {[%emt 0:00:09]} Kg8 {[%emt 0:00:37]} 17. Nf4 {[%emt 0:00:19]} Qc7 {[%emt 0:06:45]} 18. Bh6 {[%emt 0:00:37]} Re7 {[%emt 0:01:23]} 19. Bxg7 {[%emt 0:01:38]} Kf7 {[%emt 0:02:20]} 20. Qd3 {[%emt 0:00:41]} Nf8 {[%emt 0:00:19]} 21. Bxf8 {[%emt 0:00:58]} Kxf8 {[%emt 0:00:08]} 22. Qg6 {[%emt 0:00:54]} 1-0